bitfinex/quotes_BTCUSD_20220213
["timestamp","ask_amount","ask_price","bid_price","bid_amount"]
[1644716023475,0.0528,42413.0,42405.0,0.00023061]
[1644716023674,0.0528,42413.0,42408.0,0.00052064]
[1644716024174,0.52840977,42413.0,42408.0,0.00052064]
[1644716024374,0.62840977,42413.0,42408.0,0.00052064]
[1644716024579,0.62840977,42413.0,42405.0,0.00023061]
[1644716024774,0.1528,42413.0,42404.0,0.19789403]
[1644716024975,0.1528,42413.0,42408.0,0.00052064]
[1644716025575,0.0528,42413.0,42411.0,0.20432611]
[1644716025776,0.20002636,42414.0,42411.0,0.20432611]
[1644716025978,0.16050608,42416.0,42413.0,0.06744147]
[1644716026176,0.2500347,42421.0,42413.0,0.06744147]
[1644716026177,0.20054687,42419.0,42413.0,0.06744147]
[1644716026375,0.20054687,42419.0,42412.0,0.30126974]
[1644716026577,0.00052051,42419.0,42412.0,0.3010391]
[1644716026827,0.00052051,42419.0,42412.0,0.30126974]
[1644716027022,0.25002636,42420.0,42412.0,0.30126974]
[1644716027221,0.25002636,42420.0,42413.0,0.00052061]
[1644716027421,0.00052054,42419.0,42413.0,0.00023064]
[1644716027620,0.00052054,42419.0,42412.0,0.29999044]
[1644716028022,0.00052054,42419.0,42411.0,0.43592868]
[1644716028222,0.25002636,42420.0,42411.0,0.43592868]
[1644716029625,0.00052056,42418.0,42411.0,0.43644932]
[1644716030579,0.20002636,42419.0,42411.0,0.43592868]
[1644716030779,0.25002636,42420.0,42411.0,0.43644931]
[1644716030977,0.00052056,42417.0,42414.0,0.00112502]
[1644716031978,0.25002636,42420.0,42414.0,0.00112502]
[1644716032179,0.00052056,42418.0,42414.0,0.00112502]
[1644716032980,0.25002636,42420.0,42414.0,0.00112502]
[1644716033379,0.00052055,42418.0,42414.0,0.00112502]
[1644716034181,0.25002636,42420.0,42414.0,0.00112502]
[1644716034428,0.00052055,42418.0,42414.0,0.00112502]
[1644716035528,0.25002636,42420.0,42414.0,0.00112502]
[1644716035738,0.00052055,42418.0,42411.0,0.43644932]
[1644716036330,0.00052055,42418.0,42411.0,0.51902469]
[1644716036532,0.00052055,42418.0,42411.0,0.71946226]
[1644716036732,0.05,42420.0,42411.0,0.71894162]
[1644716036930,0.05,42420.0,42412.0,0.20043757]
[1644716036931,0.00052056,42417.0,42412.0,0.20043757]
[1644716037131,0.00052056,42417.0,42411.0,0.63688688]
[1644716037930,0.05,42420.0,42411.0,0.63636625]
[1644716038172,0.00052056,42416.0,42411.0,0.63688688]
[1644716038871,0.00052056,42416.0,42411.0,0.43245311]
[1644716039071,0.05,42420.0,42411.0,0.43193248]
[1644716039273,0.00052056,42416.0,42411.0,0.43245311]
[1644716039775,0.00052056,42416.0,42411.0,0.63165134]
[1644716040176,0.05,42420.0,42411.0,0.63113071]
[1644716040375,0.05,42420.0,42411.0,0.63165134]
[1644716040576,0.00052056,42416.0,42411.0,0.43121377]
[1644716041376,0.05,42420.0,42411.0,0.43069314]
[1644716041577,0.05,42420.0,42411.0,0.43121377]
[1644716041851,0.00052056,42416.0,42411.0,0.43121377]
[1644716042641,0.05,42420.0,42411.0,0.43069314]
[1644716042841,0.00052056,42416.0,42411.0,0.43121377]
[1644716043843,0.05,42420.0,42411.0,0.43092365]
[1644716044044,0.05,42420.0,42411.0,0.43144428]
[1644716044244,0.00052056,42416.0,42411.0,0.43144428]
[1644716044845,0.00052056,42416.0,42411.0,0.23224605]
[1644716045143,0.05,42420.0,42411.0,0.23172542]
[1644716045345,0.00052056,42416.0,42411.0,0.23224605]
[1644716045972,0.00052056,42416.0,42412.0,0.00126422]
[1644716046177,0.00052056,42416.0,42412.0,0.00149473]
[1644716046372,0.25002636,42420.0,42412.0,0.00149473]
[1644716046573,0.00052056,42416.0,42412.0,0.00149473]
[1644716047374,0.32515729,42420.0,42412.0,0.00149473]
[1644716047575,0.20002636,42418.0,42412.0,0.00126422]
[1644716047875,0.20002636,42418.0,42412.0,0.00149473]
[1644716047876,0.46088132,42415.0,42412.0,0.00149473]
[1644716048074,0.29593979,42414.0,42412.0,0.00149473]
[1644716048275,0.29593979,42414.0,42412.0,0.00126422]
[1644716049530,0.26085496,42415.0,42412.0,0.00126422]
[1644716049731,0.26085496,42415.0,42412.0,0.00149473]
[1644716050232,0.00052056,42416.0,42412.0,0.00126422]
[1644716050430,0.00052056,42416.0,42412.0,0.00023051]
[1644716050630,0.00052056,42416.0,42411.0,0.00052063]
[1644716051031,0.20002636,42417.0,42407.0,0.00023051]
[1644716051234,0.45243505,42417.0,42411.0,0.00052063]
[1644716051430,0.00052056,42416.0,42411.0,0.00052063]
[1644716052231,0.45243505,42417.0,42408.0,0.00023051]
[1644716052431,0.00052056,42416.0,42411.0,0.00052063]
[1644716053574,0.45243505,42417.0,42411.0,0.00052063]
[1644716053778,0.00052056,42416.0,42411.0,0.00052063]
[1644716054577,0.45243505,42417.0,42407.0,0.00023051]
[1644716054778,0.45243505,42417.0,42406.0,0.20066808]
[1644716054978,0.00052056,42416.0,42411.0,0.00052063]
[1644716055779,0.20002636,42417.0,42409.0,0.0012669]
[1644716055978,0.20002636,42417.0,42411.0,0.00052063]
[1644716056179,0.00052056,42416.0,42412.0,0.23127455]
[1644716056580,0.00052056,42416.0,42412.0,0.23150506]
[1644716057024,0.20002636,42417.0,42412.0,0.23150506]
[1644716057224,0.00052056,42416.0,42412.0,0.23127455]
[1644716057424,0.00052056,42416.0,42412.0,0.22650506]
[1644716058026,0.00052056,42416.0,42412.0,0.10469891]
[1644716058225,0.20002636,42417.0,42412.0,0.10469891]
[1644716058424,0.00052056,42416.0,42412.0,0.1044684]
[1644716058626,0.00052056,42416.0,42412.0,0.36872881]
[1644716059628,0.05,42420.0,42412.0,0.36872881]
[1644716059629,0.20002636,42419.0,42412.0,0.36872881]
[1644716059828,0.00052056,42416.0,42412.0,0.36872881]
[1644716060576,0.20002636,42419.0,42413.0,0.00126418]
[1644716060976,0.00052056,42416.0,42413.0,0.00149469]
[1644716061776,0.00052056,42416.0,42413.0,0.00126418]
[1644716061777,0.20002636,42416.0,42413.0,0.00126418]
[1644716061976,0.20002636,42415.0,42413.0,0.00126418]
[1644716062178,0.20002636,42416.0,42413.0,0.00126418]
[1644716062978,0.20054692,42417.0,42413.0,0.00126418]
[1644716063179,0.20002636,42417.0,42413.0,0.00126418]
[1644716063379,0.20054692,42417.0,42413.0,0.00126418]
[1644716064436,0.20002636,42417.0,42413.0,0.00126418]
[1644716064637,0.20054692,42417.0,42413.0,0.00126418]
[1644716065437,0.20002636,42416.0,42413.0,0.00126418]
[1644716065637,0.20002636,42416.0,42411.0,0.00052064]
[1644716065838,0.20002636,42415.0,42411.0,0.00052064]
[1644716066039,0.20002636,42416.0,42411.0,0.00052064]
[1644716066739,0.20002636,42415.0,42409.0,0.00023051]
[1644716066936,0.20002636,42415.0,42411.0,0.00052063]
[1644716067137,0.20054692,42416.0,42411.0,0.00052063]
[1644716067736,0.20002636,42415.0,42411.0,0.00052063]
[1644716067936,0.20002636,42416.0,42408.0,0.00023051]
[1644716068184,0.20002636,42415.0,42411.0,0.00052063]
[1644716068785,0.25064831,42414.0,42411.0,0.00052063]
[1644716068985,0.45067467,42414.0,42411.0,0.00052063]
[1644716069189,0.50067467,42414.0,42410.0,0.00052063]
[1644716069786,0.30064831,42414.0,42410.0,0.00052063]
[1644716070187,0.30064831,42414.0,42408.0,0.00023051]
[1644716070387,0.50067467,42414.0,42410.0,0.00052063]
[1644716070586,0.50067467,42414.0,42412.0,0.00111889]
[1644716070786,0.25002636,42414.0,42412.0,0.00111889]
[1644716070987,0.05,42414.0,42412.0,0.00111889]
[1644716071387,0.1,42415.0,42412.0,0.00111889]
[1644716071836,0.05,42415.0,42412.0,0.0013494]
[1644716072231,0.25002636,42415.0,42412.0,0.0013494]
[1644716072832,0.25002636,42415.0,42412.0,0.00111889]
[1644716073031,0.25002636,42415.0,42412.0,0.0013494]
[1644716073835,0.05,42415.0,42412.0,0.0013494]
[1644716074033,0.05,42415.0,42412.0,0.00111889]
[1644716074731,0.05,42415.0,42412.0,0.0013494]
[1644716075133,0.05,42415.0,42412.0,0.00023051]
[1644716075332,0.05,42415.0,42411.0,0.00180722]
[1644716076175,0.20054692,42416.0,42411.0,0.00180722]
[1644716076376,0.20002636,42417.0,42411.0,0.00128659]
[1644716076574,0.00052056,42416.0,42411.0,0.00180722]
[1644716076977,0.20054692,42416.0,42411.0,0.00180722]
[1644716077377,0.20002636,42415.0,42411.0,0.00180722]
[1644716078277,0.00052056,42416.0,42411.0,0.00180722]
[1644716078677,0.20002636,42417.0,42411.0,0.00128659]
[1644716078881,0.00052056,42416.0,42411.0,0.00180722]
[1644716079078,0.00052056,42416.0,42411.0,0.22365834]
[1644716079929,0.20002636,42417.0,42411.0,0.22313771]
[1644716080126,0.20002636,42417.0,42412.0,0.26499714]
[1644716080328,0.00052056,42416.0,42412.0,0.26522765]
[1644716080727,0.00052056,42416.0,42414.0,0.08623784]
[1644716080927,0.00052056,42416.0,42415.0,0.3323114]
[1644716081130,0.20002636,42419.0,42415.0,0.3323114]
[1644716081326,0.05,42420.0,42415.0,0.3323114]
[1644716081327,0.25002636,42420.0,42415.0,0.3323114]
[1644716081528,0.00052056,42417.0,42415.0,0.3323114]
[1644716081726,0.00052056,42417.0,42416.0,0.26998451]
[1644716082332,0.25002636,42420.0,42418.0,0.24736961]
[1644716082527,0.00052055,42419.0,42418.0,0.24736961]
[1644716083683,0.25002636,42420.0,42418.0,0.24736961]
[1644716083888,0.05,42420.0,42418.0,0.24736961]
[1644716086489,0.05,42420.0,42419.0,0.0528]
[1644716087335,0.04992776,42420.0,42419.0,0.0528]
[1644716088138,0.04992776,42420.0,42419.0,0.04204232]
[1644716088436,0.04992776,42420.0,42419.0,0.2704947]
[1644716090792,0.04992776,42420.0,42419.0,0.27176053]
[1644716095231,0.04992776,42420.0,42419.0,0.2704947]
[1644716096933,0.75,42419.0,42417.0,0.00011315]
[1644716097137,0.3015798,42418.0,42417.0,0.00011315]
[1644716097336,1.0642798,42418.0,42417.0,0.00011315]
[1644716097534,1.98398859,42418.0,42417.0,0.00011315]
[1644716097739,1.84444169,42418.0,42417.0,0.00011315]
[1644716098084,2.44552975,42418.0,42417.0,0.00011315]
[1644716098481,2.49552975,42418.0,42417.0,0.00011315]
[1644716098884,2.4658454,42418.0,42417.0,0.00011315]
[1644716099082,2.05190852,42418.0,42417.0,0.00011315]
[1644716099384,2.05191027,42418.0,42417.0,0.00011315]
[1644716099783,2.05185263,42418.0,42417.0,0.00011315]
[1644716100183,2.20185263,42418.0,42417.0,0.00011315]
[1644716100388,2.05185263,42418.0,42417.0,0.00011315]
[1644716100584,2.20194504,42418.0,42417.0,0.00011315]
[1644716101838,2.55185263,42418.0,42417.0,0.00011315]
[1644716102228,2.54592609,42418.0,42417.0,0.00011315]
[1644716102630,2.1960185,42418.0,42417.0,0.00011315]
[1644716103936,2.1370375,42418.0,42417.0,0.00011315]
[1644716104634,1.6370375,42418.0,42417.0,0.00011315]
[1644716104835,1.93691564,42418.0,42417.0,0.00011315]
[1644716105133,1.6370375,42418.0,42417.0,0.00011315]
[1644716106689,1.93691564,42418.0,42417.0,0.00011315]
[1644716107091,1.6370375,42418.0,42417.0,0.00011315]
[1644716108891,0.9243375,42418.0,42417.0,0.00011315]
[1644716109730,1.6370375,42418.0,42417.0,0.00011315]
[1644716113282,1.88686809,42418.0,42417.0,0.00011315]
[1644716113885,1.6370375,42418.0,42417.0,0.00011315]
[1644716114086,0.36034417,42418.0,42417.0,0.00011315]
[1644716114285,0.16049015,42418.0,42417.0,0.00011315]
[1644716114485,0.19985402,42419.0,42417.0,0.00011315]
[1644716114784,0.19986899,42419.0,42417.0,0.00011315]
[1644716115583,0.29986899,42419.0,42417.0,0.00011315]
[1644716121884,5.33e-06,42417.0,42416.0,0.00144887]
[1644716125331,5.33e-06,42417.0,42413.0,0.0528]
[1644716125931,0.00045362,42417.0,42413.0,0.0528]
[1644716126831,5.33e-06,42417.0,42413.0,0.0528]
[1644716127031,0.00045362,42417.0,42413.0,0.0528]
[1644716128077,5.33e-06,42417.0,42413.0,0.0528]
[1644716128277,0.00045362,42417.0,42413.0,0.0528]
[1644716129280,5.33e-06,42417.0,42413.0,0.0528]
[1644716129477,0.00045362,42417.0,42413.0,0.0528]
[1644716130377,5.33e-06,42417.0,42416.0,0.22907735]
[1644716130577,0.00045362,42417.0,42413.0,0.0528]
[1644716131683,5.33e-06,42417.0,42413.0,0.0528]
[1644716131944,0.00045362,42417.0,42413.0,0.0528]
[1644716132841,5.33e-06,42417.0,42413.0,0.0528]
[1644716133038,0.00045362,42417.0,42416.0,0.25622671]
[1644716133440,0.00045362,42417.0,42416.0,0.5307699]
[1644716134042,5.33e-06,42417.0,42416.0,0.5307699]
[1644716135342,5.33e-06,42417.0,42416.0,0.27454319]
[1644716138192,5.33e-06,42417.0,42412.0,0.00023051]
[1644716138488,5.33e-06,42417.0,42411.0,0.29087325]
[1644716138687,5.33e-06,42417.0,42411.0,0.55470107]
[1644716138892,5.33e-06,42417.0,42411.0,0.55425271]
[1644716139088,0.00046342,42416.0,42411.0,0.29065786]
[1644716139339,0.00046342,42416.0,42411.0,0.28565786]
[1644716140033,5.33e-06,42417.0,42411.0,0.28519438]
[1644716140232,5.33e-06,42417.0,42416.0,0.00144678]
[1644716140432,5.33e-06,42417.0,42416.0,0.00138518]
[1644716145784,5.33e-06,42417.0,42412.0,0.00023051]
[1644716145985,5.33e-06,42417.0,42409.0,0.00023051]
[1644716146185,5.33e-06,42417.0,42411.0,0.00044851]
[1644716147234,5.33e-06,42417.0,42408.0,0.00023051]
[1644716147435,0.0528,42416.0,42411.0,0.00021799]
[1644716147639,0.05324845,42416.0,42411.0,0.00021799]
[1644716148235,0.05324845,42416.0,42406.0,0.24584011]
[1644716148436,0.0528,42416.0,42406.0,0.24584011]
[1644716149535,0.0528,42416.0,42408.0,0.23875938]
[1644716149934,0.0528,42416.0,42409.0,0.00027565]
[1644716150785,0.0528,42416.0,42408.0,0.24077618]
[1644716150987,0.0528,42416.0,42409.0,0.00027565]
[1644716151987,0.0528,42416.0,42408.0,0.24077618]
[1644716152187,0.00048298,42415.0,42409.0,0.00048305]
[1644716152387,0.05328298,42415.0,42409.0,0.00048305]
[1644716153189,0.0528,42415.0,42408.0,0.24077618]
[1644716153389,0.00048848,42414.0,42409.0,0.00048855]
[1644716153790,0.00048848,42414.0,42409.0,0.26289237]
[1644716154435,5.33e-06,42417.0,42409.0,0.26240382]
[1644716154633,0.00048848,42414.0,42409.0,0.00048854]
[1644716155638,5.33e-06,42417.0,42408.0,0.23875938]
[1644716155837,0.00048848,42414.0,42409.0,0.00048854]
[1644716156836,0.1999125,42417.0,42408.0,0.23875938]
[1644716157037,0.1999125,42417.0,42409.0,0.00048138]
[1644716157038,0.00048131,42414.0,42409.0,0.00048138]
[1644716157942,0.00048131,42414.0,42408.0,0.23875938]
[1644716158188,0.00048131,42414.0,42409.0,0.00048138]
[1644716158787,0.00048131,42414.0,42409.0,0.26277298]
[1644716159188,5.33e-06,42417.0,42409.0,0.2622916]
[1644716159386,5.33e-06,42417.0,42409.0,0.26277298]
[1644716159587,0.00048131,42414.0,42409.0,0.26277298]
[1644716160188,0.00048131,42414.0,42410.0,0.0020167]
[1644716160389,5.33e-06,42417.0,42410.0,0.0020167]
[1644716160587,0.0004816,42414.0,42410.0,0.0020167]
[1644716161588,0.1999125,42417.0,42410.0,0.0020167]
[1644716161864,0.0004816,42414.0,42410.0,0.0020167]
[1644716162857,5.33e-06,42417.0,42410.0,0.0020167]
[1644716163056,0.0004816,42414.0,42410.0,0.0020167]
[1644716163959,5.33e-06,42417.0,42410.0,0.00224696]
[1644716164158,5.33e-06,42417.0,42415.0,0.24520588]
[1644716170435,5.33e-06,42417.0,42416.0,0.00201934]
[1644716171236,5.33e-06,42417.0,42416.0,0.2738277]
[1644716171837,0.00048155,42419.0,42417.0,0.00010423]
[1644716172439,0.19990717,42423.0,42417.0,0.00010423]
[1644716172839,0.00048154,42420.0,42417.0,0.00010423]
[1644716173482,0.00048154,42420.0,42418.0,0.07901961]
[1644716173684,0.19990717,42423.0,42422.0,0.23967215]
[1644716173887,0.19990717,42424.0,42422.0,0.23967215]
[1644716174285,0.19990717,42423.0,42422.0,0.23967215]
[1644716175485,0.19990717,42424.0,42422.0,0.23967215]
[1644716177632,0.19990717,42424.0,42417.0,0.00010423]
[1644716177633,0.05,42423.0,42417.0,0.00010423]
[1644716177836,0.19990717,42422.0,42417.0,0.00010423]
[1644716178034,0.24988396,42420.0,42417.0,0.00010423]
[1644716178234,0.30268396,42419.0,42417.0,0.00010423]
[1644716178635,0.26330104,42418.0,42417.0,0.00010423]
[1644716178835,0.36610104,42418.0,42417.0,0.00010423]
[1644716179036,0.41610104,42418.0,42417.0,0.00010423]
[1644716179239,0.51610104,42418.0,42417.0,0.00010423]
[1644716179637,0.765985,42418.0,42417.0,0.00010423]
[1644716181589,0.81596179,42418.0,42417.0,0.00010423]
[1644716181991,0.81608948,42418.0,42417.0,0.00010423]
[1644716183800,1.13079712,42418.0,42417.0,0.00010423]
[1644716183994,1.84054623,42418.0,42417.0,0.00010423]
[1644716184438,2.00105059,42418.0,42417.0,0.00010423]
[1644716186235,1.65121304,42418.0,42417.0,0.00010423]
[1644716186635,2.00105059,42418.0,42417.0,0.00010423]
[1644716187839,1.65121304,42418.0,42417.0,0.00010423]
[1644716189597,2.00105059,42418.0,42417.0,0.00010423]
[1644716190592,1.65121304,42418.0,42417.0,0.00010423]
[1644716192041,1.65121304,42418.0,42417.0,2.294e-05]
[1644716194045,1.68810286,42418.0,42417.0,2.294e-05]
[1644716194944,1.5275985,42418.0,42417.0,2.294e-05]
[1644716195144,1.68811103,42418.0,42417.0,2.294e-05]
[1644716197892,1.42480999,42418.0,42417.0,2.294e-05]
[1644716198292,0.55,42417.0,42409.0,0.0255099]
[1644716198491,0.19992809,42412.0,42409.0,0.0255099]
[1644716198691,0.0528,42411.0,42409.0,0.00048696]
[1644716198893,0.0528,42411.0,42401.0,0.01]
[1644716198894,0.27375608,42410.0,42402.0,0.00023026]
[1644716199092,0.0528,42409.0,42408.0,0.00048694]
[1644716199340,0.33194675,42409.0,42408.0,0.00048694]
[1644716199736,0.52524938,42409.0,42408.0,0.00048694]
[1644716199941,0.62524938,42409.0,42408.0,0.00048694]
[1644716200137,0.62524938,42409.0,42402.0,0.00023026]
[1644716200336,0.62524938,42409.0,42401.0,0.01]
[1644716200337,0.34610263,42409.0,42406.0,0.00048695]
[1644716200538,0.61922377,42409.0,42406.0,0.00048695]
[1644716201337,0.61922377,42409.0,42402.0,0.00023026]
[1644716201538,0.61922377,42409.0,42405.0,0.00048688]
[1644716202442,0.61922377,42409.0,42402.0,0.00023026]
[1644716202639,0.61922377,42409.0,42405.0,0.00048689]
[1644716204792,0.61922377,42409.0,42402.0,0.00023026]
[1644716204990,0.61922377,42409.0,42405.0,0.0004869]
[1644716205991,0.61922377,42409.0,42402.0,0.00023026]
[1644716206191,0.61922377,42409.0,42405.0,0.0004869]
[1644716207341,0.61922377,42409.0,42402.0,0.00023026]
[1644716207543,0.61922377,42409.0,42405.0,0.0004869]
[1644716208541,0.61922377,42409.0,42389.0,0.051]
[1644716208542,0.18122717,42397.0,42389.0,0.051]
[1644716208842,0.18122717,42397.0,42396.0,0.21341192]
[1644716209441,0.18122717,42397.0,42396.0,0.0011]
[1644716210050,0.23402717,42397.0,42396.0,0.0011]
[1644716210687,0.46980423,42397.0,42396.0,0.0011]
[1644716212291,0.46480423,42397.0,42396.0,0.0011]
[1644716215942,0.17622717,42397.0,42396.0,0.0011]
[1644716220395,0.17622717,42397.0,42396.0,0.00235913]
[1644716220992,0.17622717,42397.0,42396.0,0.51235211]
[1644716222041,0.17622717,42397.0,42396.0,0.31202054]
[1644716226193,0.17622717,42397.0,42396.0,0.562435]
[1644716230348,0.17622717,42397.0,42396.0,0.31202054]
[1644716231545,0.17622717,42397.0,42396.0,0.00235913]
[1644716235097,0.17622717,42397.0,42396.0,0.25277359]
[1644716236939,0.17612245,42397.0,42396.0,0.00235913]
[1644716240593,0.17612245,42397.0,42396.0,0.25277359]
[1644716242396,0.17612245,42397.0,42396.0,0.00235913]
[1644716243598,0.4447583,42397.0,42396.0,0.00235913]
[1644716243808,0.4975583,42397.0,42396.0,0.00235913]
[1644716244745,0.78709017,42397.0,42396.0,0.00235913]
[1644716245146,0.4975583,42397.0,42396.0,0.00235913]
[1644716246647,0.77432633,42397.0,42396.0,0.00235913]
[1644716248293,0.4975583,42397.0,42396.0,0.00235913]
[1644716252641,0.78405957,42397.0,42396.0,0.00235913]
[1644716252841,1.08444498,42397.0,42396.0,0.00235913]
[1644716253040,1.74434498,42397.0,42396.0,0.00235913]
[1644716253642,0.75,42396.0,42394.0,0.00158344]
[1644716253844,0.75,42396.0,42394.0,0.00017583]
[1644716253845,0.96261012,42395.0,42394.0,0.00017583]
[1644716254043,0.96261012,42395.0,42393.0,0.0021]
[1644716254044,0.6977,42395.0,42393.0,0.0021]
[1644716254344,0.6599,42394.0,42393.0,0.0021]
[1644716254540,0.7627,42394.0,42388.0,0.0011]
[1644716254739,0.86026813,42393.0,42388.0,0.0011]
[1644716254941,0.0528,42392.0,42388.0,0.0011]
[1644716255995,0.35380716,42392.0,42388.0,0.0011]
[1644716256195,0.45380716,42392.0,42388.0,0.0011]
[1644716257997,0.65,42391.0,42389.0,0.00152065]
[1644716258198,0.65,42391.0,42388.0,0.0011]
[1644716258199,0.72620017,42391.0,42388.0,0.0011]
[1644716258398,0.20036813,42390.0,42388.0,0.0011]
[1644716258598,0.37490144,42389.0,42388.0,0.0011]
[1644716258900,0.52490144,42389.0,42388.0,0.0011]
[1644716259647,0.76181783,42389.0,42388.0,0.0011]
[1644716260244,0.28971639,42389.0,42388.0,0.0011]
[1644716260452,0.0528,42389.0,42388.0,0.0011]
[1644716260644,0.1182,42392.0,42388.0,0.0011]
[1644716261449,0.26680862,42390.0,42388.0,0.0011]
[1644716264594,0.1182,42392.0,42388.0,0.0011]
[1644716265594,0.00138775,42389.0,42388.0,0.0011]
[1644716267640,0.00138775,42389.0,42387.0,0.0021]
[1644716268641,0.08533001,42392.0,42387.0,0.0021]
[1644716268943,0.08533001,42392.0,42387.0,0.00232947]
[1644716269948,0.08533001,42392.0,42387.0,0.00285014]
[1644716270144,0.1126,42396.0,42387.0,0.00285014]
[1644716270597,0.00208162,42389.0,42387.0,0.00285014]
[1644716270799,0.00208162,42389.0,42387.0,0.00262067]
[1644716270998,0.00208162,42389.0,42387.0,0.0021]
[1644716275344,0.00208162,42389.0,42388.0,0.24992029]
[1644716275544,0.17664245,42397.0,42388.0,0.24992029]
[1644716275745,0.17612245,42397.0,42388.0,0.25014976]
[1644716276146,0.17664246,42397.0,42388.0,0.25014976]
[1644716276345,0.17664246,42397.0,42389.0,0.19506106]
[1644716276545,0.17664246,42397.0,42389.0,0.19529053]
[1644716276946,0.17612245,42397.0,42389.0,0.19529053]
[1644716277447,0.17664248,42397.0,42389.0,0.19529053]
[1644716278092,0.17612245,42397.0,42389.0,0.19529053]
[1644716278492,0.17664248,42397.0,42389.0,0.19529053]
[1644716279495,0.17612245,42397.0,42389.0,0.19529053]
[1644716279694,0.17664248,42397.0,42389.0,0.19529053]
[1644716280496,0.17612245,42397.0,42391.0,0.00112802]
[1644716280899,0.17664248,42397.0,42391.0,0.11077202]
[1644716281099,0.17664248,42397.0,42396.0,0.40626526]
[1644716281299,0.17664248,42397.0,42396.0,0.45906526]
[1644716281945,0.17612245,42397.0,42396.0,0.45906526]
[1644716283345,0.17612245,42397.0,42396.0,0.73005858]
[1644716283545,0.17612245,42397.0,42396.0,0.72505858]
[1644716285451,0.17612245,42397.0,42396.0,0.72632926]
[1644716290945,0.17612245,42397.0,42396.0,0.65596796]
[1644716291348,0.17612245,42397.0,42396.0,0.45533594]
[1644716292849,0.17612245,42397.0,42396.0,0.75325197]
[1644716293595,0.17612245,42397.0,42396.0,0.05407068]
[1644716293798,0.17612245,42397.0,42396.0,0.00127068]
[1644716298643,0.0153034,42392.0,42390.0,0.3]
[1644716299044,0.0153034,42392.0,42390.0,0.50063202]
[1644716299242,0.0153034,42392.0,42391.0,0.28601846]
[1644716304359,0.0153034,42392.0,42391.0,0.48665048]
[1644716305056,0.0153034,42392.0,42391.0,0.28601846]
[1644716305554,0.01738784,42392.0,42391.0,0.28601846]
[1644716307855,0.01738784,42392.0,42391.0,0.27647308]
[1644716308306,0.01738784,42392.0,42391.0,0.52688754]
[1644716308705,0.01738784,42392.0,42391.0,0.27647308]
[1644716308909,0.01738784,42392.0,42391.0,0.47699323]
[1644716309106,0.01738784,42392.0,42391.0,0.27647308]
[1644716309306,0.01738784,42392.0,42391.0,0.27147308]
[1644716310907,0.0153034,42392.0,42391.0,0.27147308]
[1644716311110,0.0153034,42392.0,42391.0,0.52188754]
[1644716311944,0.0153034,42392.0,42391.0,0.27147308]
[1644716315446,0.0153034,42392.0,42391.0,0.52210706]
[1644716315713,0.0153034,42392.0,42391.0,0.52328191]
[1644716315913,0.0153034,42392.0,42391.0,0.27264793]
[1644716316718,0.0153034,42392.0,42391.0,0.52330654]
[1644716317312,0.0153034,42392.0,42391.0,0.27264793]
[1644716317514,0.0153034,42392.0,42391.0,0.52331296]
[1644716318313,0.0153034,42392.0,42391.0,0.27264793]
[1644716320254,0.0153034,42392.0,42391.0,0.27147308]
[1644716321451,0.0153034,42392.0,42391.0,0.57197043]
[1644716321851,0.0153034,42392.0,42391.0,0.27147308]
[1644716322050,0.0153034,42392.0,42391.0,0.57197043]
[1644716322650,0.0153034,42392.0,42391.0,0.27147308]
[1644716323496,0.0153034,42392.0,42391.0,0.57197043]
[1644716324501,0.0153034,42392.0,42391.0,0.27147308]
[1644716324797,0.0153034,42392.0,42390.0,0.22962659]
[1644716324997,0.0153034,42392.0,42390.0,0.21783259]
[1644716325198,0.0153034,42392.0,42391.0,0.30099175]
[1644716327051,0.0153034,42392.0,42390.0,0.51882434]
[1644716327848,0.0153034,42392.0,42390.0,0.30231345]
[1644716328150,0.0153034,42392.0,42390.0,0.0013217]
[1644716328349,0.0153034,42392.0,42390.0,0.20202507]
[1644716328748,0.0153034,42392.0,42390.0,0.20203144]
[1644716328948,0.19043018,42391.0,42390.0,0.0013217]
[1644716330598,0.19043018,42391.0,42388.0,0.19726106]
[1644716331300,0.19043018,42391.0,42388.0,0.00022962]
[1644716331601,0.19043018,42391.0,42387.0,0.00279409]
[1644716332401,0.19043018,42391.0,42387.0,0.00232962]
[1644716332600,0.19043018,42391.0,42387.0,0.00279409]
[1644716333601,0.19043018,42391.0,42387.0,0.00232962]
[1644716333803,0.19043018,42391.0,42387.0,0.00279409]
[1644716334851,0.19043018,42391.0,42387.0,0.00232962]
[1644716335149,0.19043018,42391.0,42387.0,0.00277695]
[1644716335948,0.19043018,42391.0,42387.0,0.00232962]
[1644716336152,0.19043018,42391.0,42387.0,0.00277695]
[1644716337149,0.19043018,42391.0,42387.0,0.00232962]
[1644716337352,0.19043018,42391.0,42387.0,0.00277695]
[1644716338398,0.19043018,42391.0,42387.0,0.00232962]
[1644716338598,0.19043018,42391.0,42387.0,0.00277868]
[1644716339598,0.19043018,42391.0,42387.0,0.00232962]
[1644716339799,0.19043018,42391.0,42387.0,0.00277868]
[1644716340799,0.19043018,42391.0,42387.0,0.00232962]
[1644716341002,0.19043018,42391.0,42387.0,0.00277868]
[1644716341201,0.0528,42390.0,42387.0,0.00277868]
[1644716342047,0.0528,42390.0,42387.0,0.00232962]
[1644716347300,0.0528,42390.0,42387.0,0.00112962]
[1644716348901,0.0528,42390.0,42387.0,0.0009]
[1644716352050,0.26049116,42389.0,42387.0,0.0009]
[1644716352257,0.31049116,42389.0,42387.0,0.0009]
[1644716352452,0.38602229,42388.0,42387.0,0.0009]
[1644716358050,0.38602229,42388.0,42387.0,0.0116702]
[1644716358051,0.35802986,42388.0,42387.0,0.0116702]
[1644716358652,0.01363388,42378.0,42376.0,0.00423433]
[1644716358852,0.01363388,42378.0,42376.0,0.0022]
[1644716359051,0.01363388,42378.0,42376.0,0.00423433]
[1644716360150,0.01363388,42378.0,42376.0,0.0022]
[1644716360999,0.01363388,42378.0,42374.0,0.18420063]
[1644716361198,0.01363388,42378.0,42374.0,0.17920063]
[1644716361399,0.01363388,42378.0,42375.0,0.0003117]
[1644716362399,0.01363388,42378.0,42372.0,0.50317414]
[1644716362600,0.01363388,42378.0,42374.0,0.00052028]
[1644716363000,0.21276406,42379.0,42375.0,0.35]
[1644716363806,0.21276406,42379.0,42375.0,0.35052028]
[1644716364849,0.21276406,42379.0,42375.0,0.35]
[1644716365049,0.21276406,42379.0,42375.0,0.00052028]
[1644716365254,0.27273296,42378.0,42375.0,0.00052028]
[1644716365851,0.21276406,42379.0,42375.0,0.00052028]
[1644716366055,0.21276406,42379.0,42373.0,0.0021]
[1644716366252,0.21276406,42379.0,42374.0,0.00052028]
[1644716367253,0.21276406,42379.0,42373.0,0.0021]
[1644716367452,0.21276406,42379.0,42374.0,0.00052028]
[1644716368300,0.21276406,42379.0,42373.0,0.0021]
[1644716368501,0.21276406,42379.0,42374.0,0.00052028]
[1644716369601,0.21276406,42379.0,42373.0,0.0021]
[1644716369802,0.21276406,42379.0,42374.0,0.00052028]
[1644716370802,0.21276406,42379.0,42373.0,0.0021]
[1644716371003,0.21276406,42379.0,42374.0,0.00052028]
[1644716371605,0.21276406,42379.0,42374.0,0.20109959]